[Event "MČR 2022 rapid"]
[Site "Turnov, Czech Republic"]
[Date "2022.09.11"]
[Round "3.6"]
[White "Sodoma, Jan"]
[Black "Petr, Martin"]
[Result "1-0"]
[TimeControl "2x 15 min + 5s/move"]
[WhiteElo "2325"]
[BlackElo "2506"]

1. Nf3 {[%clk 00:15:08]} Nf6 {[%clk 00:15:08]} {[%emt 00:00:10]} 2. g3 {[%clk
00:15:08]} g6 {[%clk 00:15:11]} 3. b3 {[%clk 00:15:09]} {[%emt 00:00:05]} Bg7
{[%clk 00:15:10]} {[%emt 00:00:05]} 4. Bb2 {[%clk 00:15:13]} O-O {[%clk
00:15:11]} {[%emt 00:00:05]} 5. Bg2 {[%clk 00:15:16]} {[%emt 00:00:05]} d5
{[%clk 00:15:09]} {[%emt 00:00:05]} 6. c4 {[%clk 00:15:10]} {[%emt 00:00:09]}
c5 {[%clk 00:15:03]} {[%emt 00:00:15]} 7. cxd5 {[%clk 00:15:10]} Nxd5 {[%clk
00:15:07]} {[%emt 00:00:05]} 8. Bxg7 {[%clk 00:15:13]} Kxg7 {[%clk 00:15:11]} 9.
Qc1 {[%clk 00:15:03]} {[%emt 00:00:15]} b6 {[%clk 00:14:40]} {[%emt 00:00:36]}
10. d4 {[%clk 00:14:08]} {[%emt 00:00:59]} Na6 {[%clk 00:12:56]} {[%emt
00:01:49]} 11. Qb2 {[%clk 00:13:29]} {[%emt 00:00:43]} Kg8 {[%clk 00:12:44]}
{[%emt 00:00:22]} 12. O-O {[%clk 00:13:30]} {[%emt 00:00:04]} Bb7 {[%clk
00:12:40]} {[%emt 00:00:05]} 13. Rd1 {[%clk 00:13:12]} {[%emt 00:00:23]} Qc7
{[%clk 00:10:12]} {[%emt 00:02:41]} 14. Na3 {[%clk 00:12:59]} {[%emt 00:00:09]}
Rad8 {[%clk 00:09:57]} {[%emt 00:00:20]} 15. Rac1 {[%clk 00:12:55]} {[%emt
00:00:09]} Qb8 {[%clk 00:09:54]} {[%emt 00:00:16]} 16. Nc4 {[%clk 00:10:59]}
{[%emt 00:01:57]} Nf6 {[%clk 00:09:17]} {[%emt 00:00:39]} 17. a3 {[%clk
00:10:22]} {[%emt 00:00:42]} Bxf3 {[%clk 00:08:17]} {[%emt 00:01:04]} 18. Bxf3
{[%clk 00:10:19]} {[%emt 00:00:12]} cxd4 {[%clk 00:08:21]} 19. Rxd4 {[%clk
00:10:17]} {[%emt 00:00:13]} Rxd4 {[%clk 00:08:22]} 20. Qxd4 {[%clk 00:10:20]}
Nc5 {[%clk 00:08:22]} {[%emt 00:00:05]} 21. Qe3 {[%clk 00:09:57]} {[%emt
00:00:25]} Ne6 {[%clk 00:06:49]} {[%emt 00:01:37]} 22. Ne5 {[%clk 00:09:51]}
{[%emt 00:00:12]} Qd6 {[%clk 00:06:39]} {[%emt 00:00:20]} 23. Rc6 {[%clk
00:08:34]} {[%emt 00:01:16]} Qd1+ {[%clk 00:05:07]} {[%emt 00:01:40]} 24. Kg2
{[%clk 00:08:37]} {[%emt 00:00:05]} Nd4 {[%clk 00:05:06]} {[%emt 00:00:04]} 25.
Rc1 {[%clk 00:08:12]} {[%emt 00:00:32]} Qxb3 {[%clk 00:04:43]} {[%emt
00:00:24]} 26. Qxd4 {[%clk 00:08:15]} {[%emt 00:00:09]} Qxa3 {[%clk 00:04:47]}
27. Ra1 {[%clk 00:08:18]} Qd6 {[%clk 00:04:44]} {[%emt 00:00:07]} 28. Qxd6
{[%clk 00:07:34]} {[%emt 00:00:45]} exd6 {[%clk 00:04:48]} 29. Nc6 {[%clk
00:06:26]} {[%emt 00:01:13]} a5 {[%clk 00:04:46]} {[%emt 00:00:07]} 30. Rb1
{[%clk 00:06:19]} {[%emt 00:00:17]} Nd7 {[%clk 00:04:48]} 31. Rd1 {[%clk
00:06:23]} Nc5 {[%clk 00:04:17]} {[%emt 00:00:39]} 32. Rxd6 {[%clk 00:06:25]}
{[%emt 00:00:04]} Kg7 {[%clk 00:03:51]} {[%emt 00:00:48]} 33. Ne5 {[%clk
00:06:08]} {[%emt 00:00:09]} Rb8 {[%clk 00:03:42]} {[%emt 00:00:05]} 34. Nc4
{[%clk 00:05:39]} {[%emt 00:00:34]} b5 {[%clk 00:03:44]} {[%emt 00:00:06]} 35.
Nxa5 {[%clk 00:05:41]} {[%emt 00:00:04]} b4 {[%clk 00:03:48]} 36. Rd2 {[%clk
00:05:26]} {[%emt 00:00:16]} b3 {[%clk 00:03:27]} {[%emt 00:00:27]} 37. Nc4
{[%clk 00:05:14]} {[%emt 00:00:25]} Rb5 {[%clk 00:02:42]} {[%emt 00:00:42]} 38.
Nb2 {[%clk 00:05:06]} {[%emt 00:00:13]} Ra5 {[%clk 00:02:45]} 39. Bc6 {[%clk
00:04:31]} {[%emt 00:00:42]} Ra2 {[%clk 00:02:45]} {[%emt 00:00:06]} 40. Kf3
{[%clk 00:04:30]} {[%emt 00:00:08]} Ra1 {[%clk 00:02:29]} {[%emt 00:00:21]} 41.
Ke3 {[%clk 00:04:30]} {[%emt 00:00:04]} Rc1 {[%clk 00:02:31]} 42. Bd5 {[%clk
00:04:22]} {[%emt 00:00:18]} Kf6 {[%clk 00:02:20]} {[%emt 00:00:14]} 43. Nd3
{[%clk 00:04:19]} {[%emt 00:00:08]} Rc3 {[%clk 00:02:11]} {[%emt 00:00:10]} 44.
Kd4 {[%clk 00:04:22]} {[%emt 00:00:06]} Na4 {[%clk 00:02:03]} {[%emt 00:00:09]}
45. e4 {[%clk 00:03:50]} {[%emt 00:00:37]} Ke7 {[%clk 00:01:58]} {[%emt
00:00:10]} 46. f4 {[%clk 00:03:51]} {[%emt 00:00:07]} f6 {[%clk 00:01:58]}
{[%emt 00:00:06]} 47. e5 {[%clk 00:03:53]} {[%emt 00:00:05]} fxe5+ {[%clk
00:01:56]} {[%emt 00:00:09]} 48. fxe5 {[%clk 00:03:57]} g5 {[%clk 00:01:59]} 49.
g4 {[%clk 00:03:41]} {[%emt 00:00:35]} h6 {[%clk 00:01:59]} 50. h3 {[%clk
00:03:31]} {[%emt 00:00:04]} Kd7 {[%clk 00:01:54]} {[%emt 00:00:07]} 51. Nb4
{[%clk 00:03:15]} {[%emt 00:00:22]} Ke7 {[%clk 00:01:27]} {[%emt 00:00:39]} 52.
Bc6 {[%clk 00:02:34]} {[%emt 00:00:39]} b2 {[%clk 00:00:59]} {[%emt 00:00:35]}
53. Rxb2 {[%clk 00:02:37]} {[%emt 00:00:04]} Nxb2 {[%clk 00:00:43]} {[%emt
00:00:20]} 54. Kxc3 {[%clk 00:02:38]} Nd1+ {[%clk 00:00:46]} {[%emt 00:00:06]}
55. Kd4 {[%clk 00:02:40]} {[%emt 00:00:05]} Nf2 {[%clk 00:00:49]} 56. Bg2
{[%clk 00:02:41]} {[%emt 00:00:05]} 1-0

[Event "MČR 2022 rapid"]
[Site "Turnov, Czech Republic"]
[Date "2022.09.11"]
[Round "3.8"]
[White "Maršálek, Zdenek"]
[Black "Klement, Lukáš"]
[Result "1/2-1/2"]
[TimeControl "2x 15 min + 5s/move"]
[WhiteElo "2217"]
[BlackElo "2264"]

1. d4 {[%clk 00:15:09]} {[%emt 00:01:34]} Nf6 {[%clk 00:15:06]} 2. Nf3 {[%clk
00:15:12]} e6 {[%clk 00:15:08]} 3. g3 {[%clk 00:15:15]} b5 {[%clk 00:14:54]} 4.
e4 {[%clk 00:15:18]} {[%emt 00:00:05]} Nxe4 {[%clk 00:14:58]} 5. Bxb5 {[%clk
00:15:21]} Bb7 {[%clk 00:15:01]} 6. O-O {[%clk 00:15:21]} Be7 {[%clk 00:15:03]}
7. Re1 {[%clk 00:15:22]} {[%emt 00:00:13]} O-O {[%clk 00:14:37]} 8. Bd3 {[%clk
00:15:24]} Nf6 {[%clk 00:14:40]} 9. c4 {[%clk 00:15:23]} c5 {[%clk 00:14:20]}
10. Nc3 {[%clk 00:14:34]} cxd4 {[%clk 00:12:28]} 11. Nxd4 {[%clk 00:14:32]} Nc6
{[%clk 00:10:43]} {[%emt 00:00:52]} 12. Nxc6 {[%clk 00:14:30]} {[%emt
00:00:07]} Bxc6 {[%clk 00:10:46]} {[%emt 00:00:06]} 13. Bf4 {[%clk 00:13:33]}
{[%emt 00:01:03]} Qb6 {[%clk 00:10:02]} {[%emt 00:00:52]} 14. Qe2 {[%clk
00:13:32]} d5 {[%clk 00:08:44]} {[%emt 00:01:36]} 15. cxd5 {[%clk 00:12:48]}
{[%emt 00:00:34]} Nxd5 {[%clk 00:08:24]} {[%emt 00:00:24]} 16. Nxd5 {[%clk
00:12:51]} {[%emt 00:00:05]} Bxd5 {[%clk 00:08:27]} 17. b3 {[%clk 00:12:48]}
{[%emt 00:00:08]} Rac8 {[%clk 00:07:49]} {[%emt 00:00:43]} 18. Be4 {[%clk
00:12:45]} {[%emt 00:00:09]} Rfd8 {[%clk 00:06:58]} {[%emt 00:00:56]} 19. Be3
{[%clk 00:12:35]} {[%emt 00:00:13]} Bc5 {[%clk 00:06:34]} {[%emt 00:00:30]} 20.
Bxd5 {[%clk 00:12:32]} {[%emt 00:00:07]} Rxd5 {[%emt 00:00:47]} 21. Rac1 Rcd8
1/2-1/2

[Event "MČR 2022 rapid"]
[Site "Turnov, Czech Republic"]
[Date "2022.09.11"]
[Round "4.1"]
[White "Plát, Vojtěch"]
[Black "Štoček, Jiří"]
[Result "1/2-1/2"]
[TimeControl "2x 15 min + 5s/move"]
[WhiteElo "2563"]
[BlackElo "2521"]

1. e4 {[%clk 00:15:08]} {[%emt 00:00:15]} c5 {[%clk 00:15:08]} 2. Nf3 {[%clk
00:15:12]} d6 {[%clk 00:15:10]} 3. c3 {[%clk 00:15:09]} Nf6 {[%clk 00:15:09]} 4.
Bc4 {[%clk 00:15:13]} Nc6 {[%clk 00:14:59]} 5. Qe2 {[%clk 00:15:16]} Bg4 {[%clk
00:14:47]} {[%emt 00:00:13]} 6. h3 {[%clk 00:15:06]} {[%emt 00:00:11]} Bh5
{[%clk 00:14:25]} {[%emt 00:00:23]} 7. d3 {[%clk 00:14:59]} {[%emt 00:00:17]}
e6 {[%clk 00:14:12]} {[%emt 00:00:16]} 8. Bf4 {[%clk 00:14:50]} {[%emt
00:00:11]} a6 {[%clk 00:13:45]} {[%emt 00:00:36]} 9. Bb3 {[%clk 00:14:54]} d5
{[%clk 00:13:26]} {[%emt 00:00:21]} 10. Nbd2 {[%clk 00:14:33]} {[%emt
00:00:25]} Be7 {[%clk 00:12:58]} {[%emt 00:00:43]} 11. g4 {[%clk 00:13:58]}
{[%emt 00:00:31]} Bg6 {[%clk 00:12:59]} {[%emt 00:00:05]} 12. h4 {[%clk
00:13:06]} {[%emt 00:00:56]} h5 {[%clk 00:10:20]} {[%emt 00:02:43]} 13. g5
{[%clk 00:13:07]} {[%emt 00:00:06]} Ng4 {[%clk 00:10:23]} 14. Bg3 {[%clk
00:12:14]} {[%emt 00:01:03]} O-O {[%clk 00:10:06]} {[%emt 00:00:17]} 15. O-O
{[%clk 00:11:20]} {[%emt 00:01:04]} Bd6 {[%clk 00:09:11]} {[%emt 00:01:05]} 16.
e5 {[%clk 00:09:36]} {[%emt 00:01:40]} Bc7 {[%clk 00:09:11]} {[%emt 00:00:06]}
17. Rfe1 {[%clk 00:08:49]} {[%emt 00:00:50]} b5 {[%clk 00:08:47]} {[%emt
00:00:29]} 18. Rad1 {[%clk 00:08:29]} {[%emt 00:00:25]} Rc8 {[%clk 00:08:15]}
{[%emt 00:00:37]} 19. Nf1 {[%clk 00:07:14]} {[%emt 00:01:23]} Re8 {[%clk
00:07:44]} {[%emt 00:00:35]} 20. Bf4 {[%clk 00:06:20]} {[%emt 00:00:57]} Qe7
{[%clk 00:05:52]} {[%emt 00:01:58]} 21. Ng3 {[%clk 00:06:22]} {[%emt 00:00:06]}
c4 {[%clk 00:05:51]} {[%emt 00:00:04]} 22. Bc2 {[%clk 00:05:48]} {[%emt
00:00:37]} cxd3 {[%clk 00:05:54]} {[%emt 00:00:06]} 23. Bxd3 {[%clk 00:05:52]}
Bb6 {[%clk 00:05:16]} {[%emt 00:00:40]} 24. Rf1 {[%clk 00:05:24]} {[%emt
00:00:35]} Red8 {[%clk 00:04:34]} {[%emt 00:00:46]} 25. Kg2 {[%clk 00:05:24]}
{[%emt 00:00:05]} Qb7 {[%clk 00:04:11]} {[%emt 00:00:27]} 26. Bxg6 {[%clk
00:04:35]} {[%emt 00:00:54]} fxg6 {[%clk 00:04:15]} 27. Nd4 {[%clk 00:04:39]}
{[%emt 00:00:05]} Qf7 {[%clk 00:03:07]} {[%emt 00:01:11]} 28. Nxc6 {[%clk
00:03:33]} {[%emt 00:01:12]} Rxc6 {[%clk 00:03:07]} {[%emt 00:00:06]} 29. Be3
{[%clk 00:02:14]} {[%emt 00:01:24]} Bxe3 {[%clk 00:02:41]} {[%emt 00:00:36]} 30.
fxe3 {[%clk 00:02:18]} Qe8 {[%clk 00:02:40]} {[%emt 00:00:05]} 31. e4 {[%clk
00:02:12]} {[%emt 00:00:06]} Nxe5 {[%clk 00:01:52]} {[%emt 00:00:53]} 32. Rfe1
{[%clk 00:01:14]} {[%emt 00:01:06]} Rcd6 {[%clk 00:01:30]} {[%emt 00:00:24]} 33.
Rd4 {[%clk 00:00:59]} {[%emt 00:00:21]} Qc6 {[%clk 00:01:00]} {[%emt 00:00:39]}
34. Kh3 {[%clk 00:00:41]} {[%emt 00:00:18]} Qd7 {[%clk 00:00:18]} {[%emt
00:00:56]} 35. Kg2 {[%clk 00:00:40]} Qc6 {[%clk 00:00:21]} {[%emt 00:00:04]} 36.
Kh3 {[%clk 00:00:44]} Qd7 {[%clk 00:00:25]} 37. Kg2 {[%clk 00:00:49]} 1/2-1/2

[Event "MČR 2022 rapid"]
[Site "Turnov, Czech Republic"]
[Date "2022.09.11"]
[Round "4.2"]
[White "Petr, Martin"]
[Black "Červený, Martin"]
[Result "1/2-1/2"]
[TimeControl "2x 15 min + 5s/move"]
[WhiteElo "2506"]
[BlackElo "2413"]

1. Nf3 {[%clk 00:15:03]} {[%emt 00:00:07]} d5 {[%clk 00:15:09]} {[%emt
00:00:06]} 2. g3 {[%clk 00:15:07]} Nf6 {[%clk 00:15:12]} {[%emt 00:00:04]} 3.
Bg2 {[%clk 00:15:10]} g6 {[%clk 00:15:13]} {[%emt 00:00:05]} 4. c4 {[%clk
00:15:05]} {[%emt 00:00:05]} dxc4 {[%clk 00:14:58]} {[%emt 00:00:26]} 5. Qa4+
{[%clk 00:14:58]} {[%emt 00:00:07]} c6 {[%clk 00:13:50]} {[%emt 00:01:13]} 6.
Qxc4 {[%clk 00:15:00]} {[%emt 00:00:05]} Bg7 {[%clk 00:13:47]} {[%emt
00:00:06]} 7. O-O {[%clk 00:14:31]} {[%emt 00:00:36]} O-O {[%clk 00:13:50]}
{[%emt 00:00:05]} 8. d3 {[%clk 00:14:17]} {[%emt 00:00:15]} a5 {[%clk
00:13:32]} {[%emt 00:00:27]} 9. Qc2 {[%clk 00:14:01]} {[%emt 00:00:16]} Na6
{[%clk 00:13:01]} {[%emt 00:00:36]} 10. a3 {[%clk 00:13:22]} {[%emt 00:00:45]}
h6 {[%clk 00:12:43]} {[%emt 00:00:23]} 11. Nc3 {[%clk 00:13:00]} {[%emt
00:00:26]} Be6 {[%clk 00:12:22]} {[%emt 00:00:27]} 12. Na4 {[%clk 00:12:03]}
{[%emt 00:01:06]} Nd7 {[%clk 00:10:36]} {[%emt 00:01:48]} 13. Be3 {[%clk
00:11:47]} {[%emt 00:00:20]} b5 {[%clk 00:10:31]} {[%emt 00:00:10]} 14. Nc3
{[%clk 00:11:40]} {[%emt 00:00:16]} b4 {[%clk 00:10:03]} {[%emt 00:00:31]} 15.
Ne4 {[%clk 00:09:49]} {[%emt 00:01:53]} bxa3 {[%clk 00:09:47]} {[%emt
00:00:22]} 16. Rxa3 {[%clk 00:09:38]} {[%emt 00:00:16]} Nb4 {[%clk 00:09:50]}
{[%emt 00:00:07]} 17. Qd2 {[%clk 00:09:37]} {[%emt 00:00:08]} g5 {[%clk
00:07:30]} {[%emt 00:02:17]} 18. Nd4 {[%clk 00:09:02]} {[%emt 00:00:41]} Bd5
{[%clk 00:07:28]} {[%emt 00:00:08]} 19. Nf5 {[%clk 00:09:02]} {[%emt 00:00:04]}
Bxe4 {[%clk 00:05:45]} {[%emt 00:01:48]} 20. Bxe4 {[%clk 00:08:13]} {[%emt
00:00:54]} Nf6 {[%clk 00:05:37]} {[%emt 00:00:17]} 21. Bf3 {[%clk 00:07:28]}
{[%emt 00:00:45]} Nfd5 {[%clk 00:05:15]} {[%emt 00:00:28]} 22. Bc5 {[%clk
00:07:16]} {[%emt 00:00:22]} Na6 {[%clk 00:03:40]} {[%emt 00:01:34]} 23. Bxd5
{[%clk 00:06:33]} {[%emt 00:00:49]} Nxc5 {[%clk 00:03:35]} {[%emt 00:00:09]} 24.
Bxc6 {[%clk 00:06:37]} {[%emt 00:00:10]} Rc8 {[%clk 00:03:28]} {[%emt
00:00:05]} 25. Bf3 {[%clk 00:05:54]} {[%emt 00:00:47]} a4 {[%clk 00:03:06]}
{[%emt 00:00:28]} 26. Nxg7 {[%clk 00:04:58]} {[%emt 00:01:00]} Kxg7 {[%clk
00:03:08]} 27. Qc3+ {[%clk 00:04:58]} {[%emt 00:00:10]} Kg8 {[%clk 00:02:55]}
{[%emt 00:00:17]} 28. Qe5 {[%clk 00:04:22]} {[%emt 00:00:40]} Qb6 {[%clk
00:02:25]} {[%emt 00:00:38]} 29. Bd5 {[%clk 00:03:13]} {[%emt 00:01:10]} e6
{[%clk 00:02:22]} {[%emt 00:00:09]} 30. Bc4 {[%clk 00:03:01]} {[%emt 00:00:21]}
Rb8 {[%clk 00:02:08]} {[%emt 00:00:19]} 31. Ra2 {[%clk 00:02:47]} {[%emt
00:00:15]} Nd7 {[%clk 00:01:30]} {[%emt 00:00:43]} 32. Qc3 {[%clk 00:02:48]}
{[%emt 00:00:06]} Qc6 {[%clk 00:01:23]} {[%emt 00:00:09]} 33. Rfa1 {[%clk
00:02:38]} {[%emt 00:00:15]} Nb6 {[%clk 00:01:27]} {[%emt 00:00:06]} 34. Qf6
{[%clk 00:02:07]} {[%emt 00:00:40]} Kh7 {[%clk 00:01:28]} 35. Rc1 {[%clk
00:01:57]} {[%emt 00:00:11]} Qd6 {[%clk 00:01:23]} {[%emt 00:00:09]} 36. d4
{[%clk 00:01:41]} {[%emt 00:00:21]} Nxc4 {[%clk 00:01:19]} {[%emt 00:00:10]} 37.
Rxc4 {[%clk 00:01:45]} a3 {[%clk 00:01:13]} {[%emt 00:00:13]} 38. Rxa3 {[%clk
00:00:52]} {[%emt 00:00:57]} Rxb2 {[%clk 00:01:16]} {[%emt 00:00:05]} 39. Rf3
{[%clk 00:00:41]} {[%emt 00:00:13]} Rxe2 {[%clk 00:01:14]} {[%emt 00:00:06]} 40.
h3 {[%clk 00:00:29]} {[%emt 00:00:17]} Ra2 {[%clk 00:00:53]} {[%emt 00:00:28]}
41. Rc8 {[%clk 00:00:22]} {[%emt 00:00:10]} Rxc8 {[%clk 00:00:38]} {[%emt
00:00:20]} 42. Qxf7+ {[%clk 00:00:26]} Kh8 {[%clk 00:00:42]} {[%emt 00:00:07]}
43. Qf6+ {[%clk 00:00:21]} {[%emt 00:00:06]} Kh7 {[%clk 00:00:44]} {[%emt
00:00:05]} 44. Qf7+ {[%clk 00:00:24]} {[%emt 00:00:06]} Kh8 {[%clk 00:00:48]}
45. Qf6+ {[%clk 00:00:21]} {[%emt 00:00:09]} Kg8 {[%emt 00:00:31]} 46. Qg6+
{[%emt 00:00:13]} Kh8 47. Qf7 Qf8 {[%emt 00:00:10]} 48. Rf6 Qd6 {[%emt
00:00:19]} 49. Kh2 Rc1 1/2-1/2

[Event "MČR 2022 rapid"]
[Site "Turnov, Czech Republic"]
[Date "2022.09.11"]
[Round "4.3"]
[White "Baláček, Tadeáš"]
[Black "Neuman, Petr"]
[Result "0-1"]
[TimeControl "2x 15 min + 5s/move"]
[WhiteElo "2247"]
[BlackElo "2416"]

1. d4 {[%clk 00:15:01]} {[%emt 00:00:11]} d5 {[%clk 00:15:07]} {[%emt
00:00:06]} 2. c4 {[%clk 00:15:04]} {[%emt 00:00:05]} c6 {[%clk 00:15:10]} 3.
Nf3 {[%clk 00:15:07]} Nf6 {[%clk 00:15:14]} 4. g3 {[%clk 00:14:59]} {[%emt
00:00:20]} g6 {[%clk 00:15:17]} 5. Bg2 {[%clk 00:15:01]} Bg7 {[%clk 00:15:20]}
6. O-O {[%clk 00:15:02]} {[%emt 00:00:09]} O-O {[%clk 00:15:23]} 7. b3 {[%clk
00:14:44]} {[%emt 00:00:18]} dxc4 {[%clk 00:15:20]} {[%emt 00:00:13]} 8. bxc4
{[%clk 00:14:45]} c5 {[%clk 00:15:22]} {[%emt 00:00:05]} 9. Bb2 {[%clk
00:14:39]} {[%emt 00:00:08]} Qb6 {[%clk 00:15:22]} {[%emt 00:00:04]} 10. Qb3
{[%clk 00:13:53]} {[%emt 00:00:52]} Ne4 {[%clk 00:15:19]} {[%emt 00:00:09]} 11.
Ne5 {[%clk 00:12:52]} {[%emt 00:01:06]} Nd6 {[%clk 00:14:50]} {[%emt 00:00:37]}
12. d5 {[%clk 00:12:42]} {[%emt 00:00:12]} Nd7 {[%clk 00:11:19]} {[%emt
00:03:35]} 13. Nd3 {[%clk 00:09:39]} {[%emt 00:03:08]} Bxb2 {[%clk 00:09:46]}
{[%emt 00:01:38]} 14. Nxb2 {[%clk 00:09:41]} {[%emt 00:00:13]} Qb4 {[%clk
00:07:55]} {[%emt 00:01:50]} 15. Rc1 {[%clk 00:08:11]} {[%emt 00:01:32]} b6
{[%clk 00:07:59]} 16. Qxb4 {[%clk 00:06:53]} {[%emt 00:01:23]} cxb4 {[%clk
00:08:02]} 17. Nd3 {[%clk 00:06:56]} {[%emt 00:00:11]} a5 {[%clk 00:06:52]}
{[%emt 00:01:10]} 18. c5 {[%clk 00:04:03]} {[%emt 00:02:55]} bxc5 {[%clk
00:06:56]} 19. Nxc5 {[%clk 00:04:07]} {[%emt 00:00:06]} Nxc5 {[%clk 00:06:59]}
20. Rxc5 {[%clk 00:04:11]} {[%emt 00:00:05]} Ba6 {[%clk 00:06:22]} {[%emt
00:00:36]} 21. Nd2 {[%clk 00:03:23]} {[%emt 00:00:54]} Bxe2 {[%clk 00:05:36]}
{[%emt 00:00:50]} 22. Re1 {[%clk 00:03:22]} {[%emt 00:00:09]} Bb5 {[%clk
00:05:38]} {[%emt 00:00:10]} 23. Rxe7 {[%clk 00:03:15]} {[%emt 00:00:04]} Rfc8
{[%clk 00:05:18]} {[%emt 00:00:23]} 24. Rcc7 {[%clk 00:01:15]} {[%emt
00:02:08]} a4 {[%clk 00:04:21]} {[%emt 00:01:03]} 25. Ne4 {[%clk 00:00:43]}
{[%emt 00:01:08]} b3 {[%clk 00:02:04]} {[%emt 00:01:49]} 26. axb3 {[%clk
00:00:46]} axb3 {[%clk 00:01:44]} {[%emt 00:00:25]} 27. Nxd6 {[%clk 00:00:19]}
{[%emt 00:00:36]} Rxc7 {[%clk 00:01:37]} {[%emt 00:00:16]} 28. Rxc7 {[%clk
00:00:17]} Ra1+ {[%clk 00:01:40]} 29. Bf1 {[%clk 00:00:21]} {[%emt 00:00:04]}
Bxf1 {[%clk 00:01:40]} {[%emt 00:00:05]} 30. Rc8+ {[%clk 00:00:11]} {[%emt
00:00:12]} Kg7 {[%clk 00:01:43]} {[%emt 00:00:05]} 31. Ne8+ {[%clk 00:00:14]}
Kh6 {[%clk 00:01:45]} {[%emt 00:00:04]} 32. h4 {[%clk 00:00:13]} {[%emt
00:00:05]} Bh3+ {[%clk 00:01:44]} 0-1